bitfinex/quotes_ETHUSD_20240922
["timestamp","ask_amount","ask_price","bid_price","bid_amount"]
[1727035555296,6.59422186,2579.9,2579.8,2.2984987]
[1727035555999,6.59422186,2579.9,2579.3,0.0377987]
[1727035556000,3.87645,2579.7,2579.4,2.3107]
[1727035556285,0.03,2579.6,2579.4,2.3107]
[1727035556798,0.13375791,2579.5,2579.4,2.3107]
[1727035561394,0.16375791,2579.5,2579.4,2.3107]
[1727035562917,0.16375791,2579.5,2579.4,6.81013487]
[1727035566741,0.16375791,2579.5,2579.4,2.3107]
[1727035571655,0.16375791,2579.5,2579.4,6.18757]
[1727035571866,0.16375791,2579.5,2579.4,9.18757]
[1727035572161,0.16375791,2579.5,2579.4,11.65554097]
[1727035572326,0.16375791,2579.5,2579.4,12.69646489]
[1727035572327,0.03,2579.5,2579.4,12.69646489]
[1727035572526,7.45,2580.7,2579.9,2.3196]
[1727035572774,3.87499,2580.7,2580.1,3.87572]
[1727035573055,0.12786398,2580.6,2580.2,2.3196]
[1727035573245,1.1833597,2580.8,2580.2,2.3196]
[1727035573431,1.1833597,2580.8,2580.1,3.87572]
[1727035573432,0.12807638,2580.5,2580.3,2.939132]
[1727035573631,5.0582097,2580.8,2580.3,2.939132]
[1727035573856,0.12807638,2580.4,2580.3,2.3196]
[1727035574057,3.87499,2580.7,2580.3,2.3196]
[1727035574348,7.74999,2580.7,2580.3,2.3196]
[1727035574546,0.12818255,2580.6,2580.3,2.3196]
[1727035576349,4.00325255,2580.6,2580.3,2.3196]
[1727035576957,0.12818255,2580.6,2580.3,2.3196]
[1727035577692,0.12818255,2580.6,2580.5,3.87521]
[1727035577854,0.12818255,2580.6,2580.5,6.19481]
[1727035578055,3.8738,2581.5,2580.9,3.8745]
[1727035578369,7.45,2581.7,2581.2,3.87405]
[1727035578586,7.45,2581.7,2581.3,6.19361]
[1727035579198,3.87365,2581.6,2581.3,2.3196]
[1727035579545,11.32353,2581.7,2581.3,2.3196]
[1727035581484,3.87361,2581.6,2581.3,2.3196]
[1727035581685,11.32353,2581.7,2581.3,2.3196]
[1727035581846,3.87353,2581.7,2581.3,2.3196]
[1727035582190,0.1244081,2581.6,2581.3,2.3196]
[1727035582988,0.1244081,2581.6,2581.5,2.4745]
[1727035583300,3.87259,2582.3,2581.8,2.4745]
[1727035584245,0.0377987,2582.4,2582.1,3.87278]
[1727035584481,0.0377987,2582.4,2582.2,2.4745]
[1727035585764,0.0377987,2582.4,2582.2,2.55194464]
[1727035585964,0.0377987,2582.4,2582.2,3.17147564]
[1727035586164,0.0377987,2582.4,2582.2,7.04412564]
[1727035586396,0.0377987,2582.4,2582.2,4.56954564]
[1727035586574,0.0377987,2582.4,2582.3,6.34701]
[1727035586774,0.0377987,2582.4,2582.3,6.42445183]
[1727035586974,0.0377987,2582.4,2582.3,6.91176862]
[1727035587208,0.0377987,2582.4,2582.3,3.03925862]
[1727035587701,0.0377987,2582.4,2582.3,6.91176862]
[1727035588006,0.0377987,2582.4,2582.3,3.03925862]
[1727035588218,0.0377987,2582.4,2582.3,2.4745]
[1727035591166,0.0377987,2582.4,2582.0,2.4745]
[1727035592478,0.0377987,2582.4,2581.7,7.74664]
[1727035592479,2.56209323,2582.2,2581.7,5.4745]
[1727035592711,2.346,2582.3,2581.7,5.4745]
[1727035592712,3.8729,2582.1,2581.7,2.4745]
[1727035593094,6.2186,2582.3,2581.7,2.4745]
[1727035593335,6.2186,2582.3,2581.8,0.07745812]
[1727035593336,4.75444919,2582.3,2581.8,0.07745812]
[1727035593547,4.75444919,2582.3,2581.8,3.87326]
[1727035593855,4.75444919,2582.3,2581.7,6.3478]
[1727035594043,3.8726,2582.3,2581.7,6.3478]
[1727035594499,0.0377987,2582.4,2581.7,6.3478]
[1727035595000,0.0377987,2582.4,2582.0,2.3424]
[1727035595364,3.87253,2582.3,2582.0,2.3424]
[1727035596763,0.0377987,2582.4,2582.0,2.3424]
[1727035597367,0.0377987,2582.4,2582.3,6.21491]
[1727035598060,0.0377987,2582.4,2582.3,2.3424]
[1727035598425,0.0377987,2582.4,2582.0,9.21526]
[1727035598625,0.0377987,2582.4,2582.1,0.07744555]
[1727035598833,0.0377987,2582.4,2582.2,3.87258]
[1727035599750,0.0377987,2582.4,2582.2,3.9500255]
[1727035600392,3.9101787,2582.4,2582.0,2.3424]
[1727035601482,3.9101787,2582.4,2581.9,7.74603]
[1727035602005,8.62820848,2582.4,2581.9,3.87301]
[1727035602344,8.62820848,2582.4,2581.8,2.3424]
[1727035602345,7.31789171,2582.4,2581.8,5.3424]
[1727035602559,7.31789171,2582.4,2581.8,3.0]
[1727035602560,3.87267,2582.2,2581.8,3.0]
[1727035602759,7.74548,2582.2,2581.8,3.0]
[1727035603296,3.87267,2582.2,2581.8,3.0]
[1727035603582,4.99173017,2582.2,2581.5,6.216]
[1727035603791,3.8729,2582.1,2581.6,3.0]
[1727035604924,2.3214,2582.0,2581.5,6.216]
[1727035605587,2.3214,2582.0,2581.5,10.08963]
[1727035606616,4.99173017,2582.2,2581.7,3.8734]
[1727035606815,0.12195956,2581.9,2581.7,3.8734]
[1727035607114,2.3214,2582.3,2581.7,3.8734]
[1727035607322,0.12195956,2581.8,2581.7,3.8734]
[1727035607841,3.87268,2582.2,2581.7,3.8734]
[1727035607982,0.12195956,2581.8,2581.7,3.8734]
[1727035608171,3.87268,2582.2,2581.7,3.8734]
[1727035608387,0.12195956,2582.1,2581.7,3.8734]
[1727035608615,0.12195956,2582.1,2581.7,3.8733]
[1727035612257,0.12195956,2582.1,2581.5,6.21596]
[1727035612258,3.87307,2582.0,2581.5,6.21596]
[1727035612466,3.87307,2582.0,2581.5,3.87356]
[1727035612665,2.44337339,2581.9,2581.5,3.87356]
[1727035614358,0.12197339,2581.9,2581.6,3.87349]
[1727035614659,6.27052,2582.1,2581.6,3.87349]
[1727035614822,0.12172451,2581.8,2581.6,3.87349]
[1727035615018,7.54105732,2582.1,2581.6,3.87349]
[1727035615236,0.12172451,2581.7,2581.6,3.87349]
[1727035615464,2.3977,2582.1,2581.7,3.87335]
[1727035619087,2.3977,2582.1,2581.6,3.87349]
[1727035619375,7.15377432,2582.1,2581.6,3.87349]
[1727035619884,3.28095432,2582.1,2581.7,3.87339]
[1727035620187,2.3977,2582.1,2581.7,3.87339]
[1727035620550,2.3977,2582.1,2581.8,3.87324]
[1727035620851,2.3977,2582.1,2581.8,3.87318]
[1727035622104,2.3977,2582.1,2581.6,7.74686]
[1727035622243,2.3977,2582.1,2581.6,3.87342]
[1727035622576,6.27054,2582.1,2581.6,3.87342]
[1727035623293,6.27054,2582.1,2581.5,3.87367]
[1727035623294,3.87304,2582.0,2581.5,3.87367]
[1727035624094,6.897594,2582.1,2581.6,3.87353]
[1727035624599,10.770554,2582.1,2581.6,3.87353]
[1727035624950,3.87312,2581.9,2581.2,6.87402]
[1727035625210,6.19306,2581.4,2580.9,2.3461]
[1727035625503,2.56209323,2581.3,2580.7,6.22093]
[1727035625653,3.87416,2581.2,2580.7,2.3461]
[1727035626053,3.87416,2581.2,2580.7,6.22099]
[1727035626252,2.56209323,2580.9,2580.4,13.57137]
[1727035626525,6.43673323,2580.9,2580.4,9.6961]
[1727035626854,0.11824076,2580.8,2580.4,9.6961]
[1727035627206,0.11824076,2580.8,2580.4,2.3461]
[1727035627697,0.11824076,2580.8,2580.4,6.22146]
[1727035627856,0.11824076,2580.8,2580.4,2.3461]
[1727035628205,0.11824076,2580.8,2580.3,3.87551]
[1727035628883,3.99301076,2580.8,2580.3,3.87551]
[1727035629482,3.99301076,2580.8,2580.2,6.22163]
[1727035629785,3.87495,2580.7,2580.2,6.22163]
[1727035630153,0.11799629,2580.6,2580.2,6.22163]
[1727035632921,0.11799629,2580.6,2580.2,3.87553]
[1727035633287,2.3192,2580.5,2580.0,6.22197]
[1727035633532,3.87563,2580.3,2579.8,2.3461]
[1727035633696,3.87605,2580.0,2579.6,2.3461]
[1727035633902,3.87605,2580.0,2579.5,3.87669]
[1727035634102,3.9935405,2579.9,2579.4,13.57297]
[1727035634685,0.1174105,2579.9,2579.5,3.8767]
[1727035634887,3.87612,2579.9,2579.4,2.3461]
[1727035635116,0.11717512,2579.8,2579.4,2.3461]
[1727035635690,0.11717512,2579.8,2579.6,3.87653]
[1727035635892,6.19509,2580.1,2579.6,3.87653]
[1727035635893,2.3192,2580.1,2579.6,3.87653]
[1727035636092,2.3192,2580.1,2579.6,3.87648]
[1727035636093,0.11679199,2579.7,2579.6,3.87648]
[1727035636336,6.19503,2580.1,2579.6,3.87648]
[1727035636490,0.11679199,2579.7,2579.6,3.87648]
[1727035636690,6.19503,2580.1,2579.6,3.87648]
[1727035636886,0.11679199,2579.7,2579.6,3.87648]
[1727035637104,6.19503,2580.1,2579.6,3.87648]
[1727035637299,0.11679199,2579.7,2579.6,3.87648]
[1727035637517,6.19503,2580.1,2579.6,3.87648]
[1727035637828,0.11677816,2579.7,2579.6,3.87648]
[1727035638027,6.19503,2580.1,2579.6,3.87648]
[1727035638230,0.11677816,2580.0,2579.6,3.87648]
[1727035638538,2.3192,2580.1,2579.6,3.87648]
[1727035638739,0.11677816,2579.9,2579.8,3.87625]
[1727035638953,6.19889,2580.3,2579.8,3.87625]
[1727035639232,0.11674123,2579.9,2579.8,3.87625]
[1727035639396,3.87569,2580.2,2579.6,7.75294]
[1727035639596,3.99243123,2580.2,2579.6,7.75294]
[1727035641301,3.99243123,2580.2,2579.7,3.87637]
[1727035641501,3.87583,2580.1,2579.6,3.87646]
[1727035641705,3.87583,2580.1,2579.6,7.75292]
[1727035641915,0.11674123,2580.0,2579.6,7.75292]
[1727035642498,0.11674123,2580.0,2579.6,7.75293]
[1727035643033,0.11674123,2580.0,2579.7,3.87641]
[1727035645232,0.11674123,2580.0,2579.6,3.87646]
[1727035645535,6.13041,2579.9,2579.4,3.87678]
[1727035646035,0.11674123,2579.8,2579.4,3.87678]
[1727035647313,6.55510446,2579.8,2579.3,0.0377987]
[1727035647912,3.87658,2579.6,2579.3,0.0377987]
[1727035648304,0.11665809,2579.5,2579.3,0.0377987]
[1727035648500,1.1290559,2579.5,2579.3,0.0377987]
[1727035649219,3.99342809,2579.5,2579.3,0.0377987]
[1727035649925,0.11665809,2579.5,2579.3,0.0377987]
[1727035650843,0.11665809,2579.5,2579.3,3.9147887]
[1727035651133,2.2542,2579.7,2579.3,3.9147887]
[1727035651334,0.11655649,2579.6,2579.3,3.9147887]
[1727035652141,0.11655649,2579.6,2579.3,0.0377987]
[1727035652838,3.99318649,2579.6,2579.3,0.0377987]
[1727035653705,0.11655649,2579.6,2579.3,0.0377987]
[1727035657240,0.11655649,2579.6,2579.3,3.9147187]
[1727035657557,0.11655649,2579.6,2579.4,2.4551]
[1727035657935,3.87627,2579.8,2579.4,2.4551]
[1727035658143,0.11641338,2579.7,2579.4,2.4551]
[1727035658345,3.87627,2579.8,2579.4,2.4551]
[1727035658526,0.11641338,2579.7,2579.4,2.4551]
[1727035658728,3.87627,2579.8,2579.4,2.4551]
[1727035658946,0.11641338,2579.7,2579.4,2.4551]
[1727035659129,3.87627,2579.8,2579.4,2.4551]
[1727035659325,0.11641338,2579.7,2579.4,2.4551]
[1727035659529,3.87627,2579.8,2579.4,2.4551]
[1727035659777,0.11641338,2579.7,2579.4,2.4551]
[1727035660261,3.87627,2579.8,2579.4,2.4551]
[1727035660454,0.11641338,2579.6,2579.4,2.4551]
[1727035660631,3.87627,2579.8,2579.4,2.4551]
[1727035661157,0.11641338,2579.7,2579.4,2.4551]
[1727035661461,3.87627,2579.8,2579.4,2.4551]
[1727035661621,0.11641338,2579.6,2579.4,6.33194]
[1727035661820,3.87627,2579.8,2579.4,6.33194]
[1727035662221,0.11641338,2579.7,2579.4,3.17045192]
[1727035662424,0.11641338,2579.7,2579.6,3.87657]
[1727035662654,13.57981,2580.3,2579.8,3.87625]
[1727035662819,2.2542,2580.3,2579.9,3.87611]
[1727035663015,2.2542,2580.3,2579.8,3.87625]
[1727035663238,6.29027,2580.6,2580.0,3.87595]
[1727035663415,3.8753,2580.5,2580.0,3.87595]
[1727035663619,7.92050632,2580.6,2579.9,2.3533]
[1727035663620,3.87568,2580.2,2579.9,2.3533]
[1727035663818,3.87568,2580.2,2579.6,3.87644]
[1727035663819,2.4151,2580.1,2579.6,3.87644]
[1727035664031,2.4151,2580.1,2579.7,3.87634]
[1727035664662,6.29101,2580.1,2579.6,7.7529]
[1727035664864,6.29101,2580.1,2579.6,3.87644]
[1727035669378,6.29101,2580.1,2579.5,6.23]
[1727035669379,3.87597,2580.0,2579.5,6.23]
[1727035670044,5.14886232,2580.0,2579.3,3.9148087]
[1727035670231,2.4151,2579.7,2579.3,3.9148087]
[1727035672170,2.4151,2579.7,2579.3,3.9147987]
[1727035672371,0.11654266,2579.6,2579.4,0.39833085]
[1727035672573,0.11654266,2579.6,2579.3,3.9147987]
[1727035672789,0.11654266,2579.6,2579.4,0.39833559]
[1727035673077,0.11654266,2579.6,2579.3,3.9147987]
[1727035673433,0.11654266,2579.6,2579.4,0.39833386]
[1727035673879,0.11654266,2579.6,2579.3,3.9147987]
[1727035674237,0.11654266,2579.6,2579.4,3.87684]
[1727035674577,0.11654266,2579.6,2579.5,3.87672]
[1727035674739,2.4151,2579.9,2579.5,3.87672]
[1727035674934,0.11647339,2579.8,2579.5,3.87672]
[1727035675131,0.11647339,2579.8,2579.4,7.75362]
[1727035675353,0.11647339,2579.8,2579.4,3.87678]
[1727035678677,0.11647339,2579.8,2579.5,0.39881731]
[1727035678678,3.99277339,2579.8,2579.5,0.39881731]
[1727035678861,3.99277339,2579.8,2579.4,3.87678]
[1727035679060,0.11647339,2579.8,2579.4,7.75356]
[1727035679384,0.11647339,2579.8,2579.5,0.39896958]
[1727035679980,0.11647339,2579.8,2579.4,7.75357]
[1727035680466,0.11647339,2579.8,2579.7,3.87641]
[1727035680661,0.11647339,2579.8,2579.7,4.27534518]
[1727035680869,2.4151,2580.1,2579.8,3.87625]
[1727035683201,2.4151,2580.1,2579.7,3.8764]
[1727035683707,2.4151,2580.1,2579.5,6.23]
[1727035684012,2.4151,2580.1,2579.3,0.84542271]
[1727035684013,3.87627,2579.8,2579.6,0.39892504]
[1727035684173,3.87627,2579.8,2579.3,3.9146787]
[1727035684378,2.4524,2579.7,2579.4,0.39903218]
[1727035684593,2.4524,2579.7,2579.3,3.9146787]
[1727035684792,2.4524,2579.7,2579.4,0.39904641]
[1727035685105,2.4524,2579.7,2579.3,3.9146787]
[1727035685810,2.4524,2579.7,2579.5,0.39901128]
[1727035686103,2.4524,2579.7,2579.3,7.7916187]
[1727035686869,2.4524,2579.7,2579.3,3.9146787]
[1727035687386,0.1165981,2579.6,2579.3,3.9146787]
[1727035688503,0.1165981,2579.6,2579.3,7.7916187]
[1727035688912,0.1165981,2579.6,2579.4,3.87687]
[1727035689269,2.56209323,2580.1,2579.6,6.37594]
[1727035689270,5.01449323,2580.1,2579.6,6.37594]
[1727035689467,5.01449323,2580.1,2579.6,6.37586]
[1727035689468,8.89034323,2580.1,2579.6,6.37586]
[1727035689776,0.11633946,2580.0,2579.7,3.87638]
[1727035689980,3.8762,2579.9,2579.4,3.87677]
[1727035690194,3.876,2580.0,2579.5,0.63846038]
[1727035690405,5.15262632,2580.0,2579.5,3.87664]
[1727035690602,9.02868632,2580.0,2579.5,3.87664]
[1727035690976,2.56878565,2579.9,2579.5,3.87664]
[1727035691177,2.56878565,2579.9,2579.4,3.87677]
[1727035691389,2.56878565,2579.9,2579.4,3.87685]
[1727035691608,2.56878565,2579.9,2579.5,4.51529246]
[1727035691973,2.56878565,2579.9,2579.5,3.8767]
[1727035693232,6.44491565,2579.9,2579.5,3.87671]
[1727035696805,3.87628,2579.8,2579.3,3.9148087]
[1727035696998,3.87628,2579.8,2579.4,0.63871425]
[1727035697201,0.1164734,2579.7,2579.4,3.87679]
[1727035697605,8.89061323,2579.9,2579.4,3.87679]
[1727035697806,0.1164734,2579.6,2579.5,4.51534838]
[1727035698024,2.4524,2579.9,2579.5,4.51534838]
[1727035698025,2.4524,2579.9,2579.6,3.87656]
[1727035698586,6.32833,2580.1,2579.6,3.87656]
[1727035702331,0.11657038,2580.0,2579.6,3.87656]
[1727035702826,3.87612,2579.9,2579.4,5.4827666]
[1727035703032,3.87612,2579.9,2579.5,0.63869237]
[1727035703332,3.87612,2579.9,2579.4,7.75351]
[1727035703487,0.11657038,2579.8,2579.5,0.63877336]
[1727035703694,0.11657038,2579.8,2579.4,7.75351]
[1727035703890,0.11657038,2579.8,2579.5,0.63875339]
[1727035704192,0.11657038,2579.8,2579.4,3.87672]
[1727035705131,0.11657038,2579.8,2579.5,0.6387808]
[1727035705330,0.11657038,2579.8,2579.4,3.87672]
[1727035706255,0.11657038,2579.8,2579.5,0.63878173]
[1727035706462,0.11657038,2579.8,2579.4,3.87672]
[1727035708559,0.11657038,2579.8,2579.4,7.75352]
[1727035708855,0.11657038,2579.8,2579.4,7.7535]
[1727035710263,0.11657038,2579.8,2579.5,1.26260488]
[1727035710415,0.11657038,2579.8,2579.4,8.56112401]
[1727035710619,0.11657038,2579.8,2579.5,1.26259641]
[1727035710819,0.11657038,2579.8,2579.4,8.56112401]
[1727035711121,0.11657038,2579.8,2579.7,6.23381]
[1727035711321,0.11657038,2579.8,2579.7,11.7853489]
[1727035711649,6.23448,2580.6,2580.0,6.23325]
[1727035711831,1.18319306,2580.5,2580.0,6.23325]
[1727035712171,1.18319306,2580.5,2580.0,6.93744813]
[1727035712172,0.11269937,2580.4,2580.0,6.93744813]
[1727035712327,0.11269937,2580.4,2580.0,10.81330813]
[1727035712522,0.11269937,2580.4,2580.1,3.87581]
[1727035713424,0.11269937,2580.4,2580.2,3.87563]
[1727035713635,0.11269937,2580.4,2580.3,3.87551]
[1727035713836,2.3594,2580.6,2580.3,3.87551]
[1727035714120,0.11269937,2580.4,2580.3,3.87551]
[1727035714544,2.3594,2580.6,2580.3,3.87551]
[1727035714998,0.11269937,2580.5,2580.3,3.87551]
[1727035715259,0.11269937,2580.5,2580.4,3.87536]
[1727035715472,0.11269937,2580.5,2580.4,6.31025924]
[1727035715827,2.3594,2580.9,2580.5,3.87521]
[1727035717350,0.11310698,2580.8,2580.5,3.87521]
[1727035719061,0.11310698,2580.8,2580.5,7.75035]
[1727035719281,0.11310698,2580.8,2580.6,3.95245676]
[1727035719770,2.3594,2581.2,2580.7,3.87491]
[1727035719974,2.3594,2581.2,2580.8,3.87468]
[1727035720470,2.3594,2581.2,2580.5,3.87516]
[1727035720471,2.56142237,2581.1,2580.5,3.87516]
[1727035720652,2.3594,2580.9,2580.5,3.87516]
[1727035720852,3.87375,2581.5,2580.4,2.3574]
[1727035720853,2.3594,2581.3,2580.8,3.87467]
[1727035721071,2.3594,2581.5,2581.1,3.87421]
[1727035721372,2.3594,2581.7,2581.2,3.95154834]
[1727035721545,2.3594,2581.7,2581.5,3.8737]
[1727035721747,2.3594,2581.7,2581.4,3.87377]
[1727035722573,2.3594,2581.7,2581.3,3.87397]
[1727035723659,3.369984,2581.7,2581.1,6.23167]
[1727035723838,2.3594,2581.7,2581.1,6.23167]
[1727035724045,3.87356,2581.6,2581.1,6.23167]
[1727035724571,8.79432237,2581.7,2581.1,6.23167]
[1727035725068,12.66782237,2581.7,2581.1,6.23167]
[1727035726154,8.79432237,2581.7,2581.1,6.23167]
[1727035726558,3.87357,2581.6,2581.1,6.23167]
[1727035727066,3.87357,2581.6,2581.1,3.87427]
[1727035730242,3.87357,2581.6,2581.1,3.95174647]
[1727035730442,3.87357,2581.6,2581.1,3.87427]
[1727035732256,0.11003616,2581.5,2581.1,3.87427]
[1727035732454,2.3379,2581.4,2580.9,6.16614]
[1727035732855,0.11024503,2581.3,2580.9,6.16614]
[1727035733392,0.11024503,2581.3,2580.9,5.2916]
[1727035733559,3.98430503,2581.3,2580.9,3.0]
[1727035733741,3.98430503,2581.3,2580.9,6.87458]
[1727035734144,0.11024503,2581.3,2580.9,6.87458]
[1727035734580,2.56142237,2581.2,2580.7,6.14718]
[1727035734790,0.11021719,2581.1,2580.8,3.0]
[1727035734986,3.87408,2581.3,2580.8,6.87467]
[1727035735300,3.87408,2581.3,2580.8,3.0]
[1727035735301,0.11021719,2581.2,2580.8,3.0]
[1727035735594,3.87402,2581.3,2580.8,6.87476]
[1727035735947,0.11013366,2581.2,2580.8,6.87476]
[1727035736195,3.87402,2581.3,2580.8,6.87476]
[1727035736483,0.11013366,2581.2,2580.8,6.87476]
[1727035736857,3.87402,2581.3,2580.8,6.87476]
[1727035737053,0.11013366,2581.1,2580.8,6.87476]
[1727035737277,3.87402,2581.3,2580.8,6.87476]
[1727035737478,0.11013366,2581.0,2580.8,6.87476]
[1727035737647,3.87402,2581.3,2580.8,6.87476]
[1727035737847,0.11013366,2580.9,2580.8,6.87476]
[1727035738057,3.87402,2581.3,2580.8,6.87476]
[1727035738379,0.10992098,2580.9,2580.8,6.87476]
[1727035738885,3.87402,2581.3,2580.8,6.87476]
[1727035739043,0.10992098,2580.9,2580.8,6.87476]
[1727035739243,3.87402,2581.3,2580.8,6.87476]
[1727035739443,0.10992098,2580.9,2580.8,6.87476]
[1727035739647,3.87402,2581.3,2580.8,6.87476]
[1727035739873,0.10992098,2580.9,2580.8,6.87476]
[1727035740280,3.87402,2581.3,2580.8,6.87476]
[1727035740479,0.10992098,2580.9,2580.8,6.87476]
[1727035740662,3.87402,2581.3,2580.8,6.87476]
[1727035740861,0.10992098,2580.9,2580.8,6.87476]
[1727035741093,3.87402,2581.3,2580.8,6.87476]
[1727035741292,0.10992098,2580.9,2580.8,6.87476]
[1727035741451,3.87402,2581.3,2580.8,6.87476]
[1727035741650,0.11013918,2580.9,2580.8,6.87476]
[1727035742158,3.87402,2581.3,2580.8,6.87476]
[1727035742371,0.11013918,2581.2,2580.8,6.87476]
[1727035742573,3.87402,2581.3,2580.8,6.87476]
[1727035742891,3.98429918,2581.2,2580.8,3.0]
[1727035743125,3.98429918,2581.2,2580.7,10.02194]
[1727035743323,3.98429918,2581.2,2580.7,10.02196]
[1727035743827,3.98429918,2581.2,2580.7,6.14712]
[1727035744278,3.98429918,2581.2,2580.7,10.02196]
[1727035744473,3.98429918,2581.2,2580.7,6.14712]
[1727035744922,3.98429918,2581.2,2580.7,10.02196]
[1727035746224,3.98429918,2581.2,2580.7,6.14712]
[1727035746410,3.87447,2581.0,2580.4,9.36544]
[1727035746575,3.98477811,2580.9,2580.4,6.36544]
[1727035747230,0.11008811,2580.9,2580.5,3.87518]
[1727035748027,0.11008811,2580.9,2580.6,3.87505]
[1727035748187,10.13044,2581.1,2580.6,3.87505]
[1727035748390,0.1100649,2581.0,2580.6,3.87505]
[1727035749435,3.9845249,2581.0,2580.6,3.87505]
[1727035749923,0.1100649,2581.0,2580.5,3.87521]
[1727035750137,3.9845249,2581.0,2580.5,3.87521]
[1727035754051,3.87464,2580.9,2580.4,6.36544]
[1727035754235,3.9845349,2581.0,2580.5,3.87514]
[1727035754720,3.9845349,2581.0,2580.6,3.87505]
[1727035755557,0.1100649,2581.0,2580.7,3.87484]
[1727035755727,0.1100649,2581.0,2580.8,2.4901]
[1727035755932,3.87416,2581.2,2580.8,2.4901]
[1727035756148,2.3817,2581.3,2580.8,2.4901]
[1727035756149,0.10979563,2580.9,2580.8,6.36479]
[1727035756319,6.25579,2581.3,2580.8,6.36479]
[1727035756524,0.10979563,2580.9,2580.8,6.36479]
[1727035756722,6.25579,2581.3,2580.8,6.36479]
[1727035757232,0.1098467,2581.2,2580.8,6.36479]
[1727035757558,6.25579,2581.3,2580.8,6.36479]
[1727035757759,0.1098467,2581.1,2580.8,6.36479]
[1727035758070,0.1098467,2581.0,2580.8,6.36479]
[1727035758363,0.1098467,2581.0,2580.8,2.4901]
[1727035758524,3.87416,2581.2,2580.7,3.87483]
[1727035758729,0.1098467,2580.9,2580.7,3.87483]
[1727035759025,0.1098467,2580.8,2580.7,3.87483]
[1727035759281,3.87416,2581.2,2580.7,3.87483]
[1727035759561,3.87416,2581.2,2580.6,6.36515]
[1727035759562,0.1098467,2580.8,2580.6,6.36515]
[1727035759767,3.87432,2581.1,2580.6,6.36515]
[1727035759936,0.1098792,2580.7,2580.6,6.36515]
[1727035760269,3.87432,2581.1,2580.6,6.76259044]
[1727035760477,3.87432,2581.1,2580.6,6.36515]
[1727035760635,0.1098792,2581.0,2580.7,3.8748]
[1727035760821,3.87416,2581.2,2580.7,3.8748]
[1727035761026,0.10986991,2581.1,2580.7,3.8748]
[1727035761426,0.10986991,2581.1,2580.7,3.95229084]
[1727035761654,0.10986991,2581.1,2580.7,3.8748]
[1727035762084,0.10986991,2581.1,2580.8,3.87473]
[1727035762422,3.87405,2581.3,2580.8,3.87473]
[1727035762662,0.10986991,2581.2,2580.9,6.36471]
[1727035762972,0.10986991,2581.2,2580.9,6.36464]
[1727035763173,11.32394,2581.4,2580.9,6.36464]
[1727035763339,0.10986991,2581.1,2581.0,3.87444]
[1727035763531,15.19788,2581.4,2580.9,2.4901]
[1727035763726,0.10986991,2581.1,2580.9,6.36471]
[1727035763958,11.32394,2581.4,2580.9,6.36471]
[1727035763959,15.19789,2581.4,2580.9,6.36471]
[1727035764155,0.10986991,2581.0,2580.9,6.36471]
[1727035764676,15.19789,2581.4,2580.9,6.7622183]
[1727035764831,0.10986991,2581.0,2580.9,6.36471]
[1727035765028,7.74789,2581.4,2580.9,6.36471]
[1727035765406,0.10986991,2581.3,2580.9,6.36471]
[1727035765554,0.10986991,2581.3,2581.1,3.87424]
[1727035765739,7.45,2581.7,2581.2,2.3007]
[1727035765940,6.33336,2581.8,2581.2,6.17477]
[1727035766135,10.20673,2581.8,2581.2,10.04886]
[1727035766461,10.20673,2581.8,2581.2,10.04883]
[1727035766669,11.34561802,2581.8,2581.2,10.04883]
[1727035767646,7.47224802,2581.8,2581.2,10.04883]
[1727035767866,11.34563802,2581.8,2581.2,6.17476]
[1727035768381,11.34563802,2581.8,2581.2,10.04885]
[1727035768542,11.34563802,2581.8,2581.2,6.17483]
[1727035768543,7.47224802,2581.8,2581.2,6.17483]
[1727035768885,7.47222802,2581.8,2581.3,3.95148284]
[1727035769056,3.87334,2581.8,2581.3,3.95148284]
[1727035770142,6.33306,2582.0,2581.4,3.87378]
[1727035770356,10.20613,2582.0,2581.6,2.3007]
[1727035770657,6.33306,2582.0,2581.6,2.3007]
[1727035771354,10.20614,2582.0,2581.6,2.3007]
[1727035771558,3.87312,2581.9,2581.6,2.3007]
[1727035771785,3.87312,2581.9,2581.4,6.17455]
[1727035773614,3.87312,2581.9,2581.5,2.3007]
[1727035773917,0.0377987,2582.4,2581.9,2.3007]
[1727035775002,0.0377987,2582.4,2581.9,6.1738]
[1727035775513,0.0377987,2582.4,2582.1,3.87272]
[1727035775807,7.7827087,2582.4,2581.9,5.3007]
[1727035775961,3.9102487,2582.4,2581.9,5.3781533]
[1727035776162,3.9102487,2582.4,2581.9,5.3007]
[1727035776857,3.9102487,2582.4,2581.9,9.17372]
[1727035777305,0.10707189,2582.3,2581.9,9.17372]
[1727035778692,0.10707189,2582.3,2581.9,5.3007]
[1727035779808,0.10707189,2582.3,2581.9,5.37815326]
[1727035779995,0.10707189,2582.3,2581.9,5.3007]
[1727035780504,0.10707189,2582.3,2581.9,5.37815325]
[1727035780725,0.10707189,2582.3,2581.9,9.25115325]
[1727035780935,0.10707189,2582.3,2582.0,3.95036157]
[1727035781220,0.10707189,2582.3,2582.0,3.95036151]
[1727035781577,0.10707189,2582.3,2582.1,3.8728]
[1727035781777,0.10707189,2582.3,2582.2,6.25080863]
[1727035782377,0.10707189,2582.3,2582.2,6.17336]
[1727035782773,0.10707189,2582.3,2582.2,9.2507992]
[1727035782986,0.0377987,2582.4,2582.3,6.87251]
[1727035783220,0.0377987,2582.4,2582.3,6.94994683]
[1727035783379,0.14493106,2582.4,2582.3,6.94994683]
[1727035783722,0.14493106,2582.4,2582.3,9.41654692]
[1727035783878,0.14493106,2582.4,2582.3,9.33911]
[1727035784228,0.0377987,2582.4,2582.3,9.33911]
[1727035784915,0.0377987,2582.4,2582.3,11.89903519]
[1727035787118,0.0377987,2582.4,2582.3,12.95544633]
[1727035787530,0.0377987,2582.4,2582.3,13.46582967]
[1727035788422,0.0377987,2583.2,2583.1,6.87131]
[1727035788722,0.0377987,2583.2,2583.1,9.41532124]
[1727035788723,0.14261557,2583.2,2583.1,9.41532124]
[1727035788934,0.0377987,2583.2,2583.1,9.33791]
[1727035789787,0.0377987,2583.2,2583.1,9.88791]
[1727035790223,0.0377987,2583.2,2583.1,9.33791]